bitfinex/quotes_SOLUSD_20240829
["timestamp","ask_amount","ask_price","bid_price","bid_amount"]
[1724915453838,12.76965147,145.14,145.07,1.37827749]
[1724915455128,12.76965147,145.14,145.06,12.76965147]
[1724915461065,12.76965147,145.14,145.07,1.37847127]
[1724915463266,45.12549,145.15,145.07,1.37847127]
[1724915463557,12.76965147,145.14,145.07,1.37847127]
[1724915466268,12.89514147,145.16,145.08,1.37847196]
[1724915466648,15.11,145.17,145.08,35.92682343]
[1724915466956,20.0,145.16,145.09,1.3782244]
[1724915469469,20.0,145.16,145.09,1.37822569]
[1724915469649,27.87965147,145.17,145.09,1.37822569]
[1724915470054,19.65725147,145.19,145.1,12.76965147]
[1724915470353,27.81035147,145.21,145.12,12.76965147]
[1724915470664,12.76965147,145.19,145.1,12.76965147]
[1724915471346,12.76965147,145.17,145.09,0.12549]
[1724915471678,12.76965147,145.17,145.08,34.54835147]
[1724915472351,12.76965147,145.17,145.09,1.37815209]
[1724915476066,12.76965147,145.19,145.09,1.37815209]
[1724915476472,12.76965147,145.19,145.1,12.76965147]
[1724915476664,12.76965147,145.19,145.11,1.37799451]
[1724915478158,12.76965147,145.19,145.1,12.76965147]
[1724915480470,12.76965147,145.17,145.08,21.7787]
[1724915480768,12.76965147,145.17,145.09,0.40433456]
[1724915481148,12.76965147,145.17,145.09,0.61065251]
[1724915482672,12.76965147,145.17,145.08,21.7787]
[1724915483062,12.76965147,145.17,145.08,22.50733779]
[1724915483748,50.12549,145.18,145.09,12.76965147]
[1724915483749,0.12549,145.18,145.09,12.76965147]
[1724915484068,12.76965147,145.18,145.1,0.76381741]
[1724915485576,12.76965147,145.18,145.09,14.14779136]
[1724915486175,12.76965147,145.18,145.09,12.76965147]
[1724915487185,69.65765147,145.18,145.08,21.7787]
[1724915487468,12.76965147,145.16,145.08,21.7787]
[1724915488671,12.76965147,145.16,145.09,0.56781866]
[1724915489060,12.76965147,145.16,145.09,1.37821474]
[1724915490070,12.76965147,145.16,145.09,4.29096189]
[1724915490752,12.76965147,145.16,145.09,2.91274715]
[1724915491975,12.76965147,145.16,145.08,21.7787]
[1724915492487,12.76965147,145.16,145.09,2.91276023]
[1724915493178,12.76965147,145.16,145.08,21.7787]
[1724915493484,12.76965147,145.16,145.09,2.91335634]
[1724915493661,12.76965147,145.16,145.08,21.7787]
[1724915493976,12.76965147,145.16,145.09,2.91340343]
[1724915494159,12.76965147,145.16,145.08,21.7787]
[1724915494358,12.76965147,145.16,145.09,2.91339104]
[1724915494572,12.76965147,145.16,145.08,21.7787]
[1724915494771,12.76965147,145.16,145.09,2.91470445]
[1724915494974,12.76965147,145.16,145.08,21.7787]
[1724915495183,12.76965147,145.16,145.09,2.91470593]
[1724915495371,12.76965147,145.16,145.1,2.91470593]
[1724915495685,12.76965147,145.16,145.08,21.7787]
[1724915495983,12.76965147,145.16,145.09,2.91521894]
[1724915496184,12.76965147,145.16,145.1,2.91521894]
[1724915496366,12.76965147,145.16,145.08,21.7787]
[1724915496560,12.76965147,145.16,145.09,2.91528632]
[1724915496764,12.76965147,145.16,145.1,2.91528632]
[1724915496965,12.76965147,145.16,145.08,21.7787]
[1724915497173,12.76965147,145.16,145.09,2.91528441]
[1724915497371,45.12549,145.17,145.1,2.91528441]
[1724915497568,15.0407,145.21,145.13,12.76965147]
[1724915497771,15.0407,145.21,145.14,1.37714061]
[1724915498565,15.0407,145.21,145.15,2.91211365]
[1724915498770,15.0407,145.21,145.14,1.37714061]
[1724915499684,15.0407,145.21,145.15,2.91212526]
[1724915500091,15.0407,145.21,145.15,5.82417372]
[1724915500599,6.4547,145.24,145.15,17.05950787]
[1724915500897,16.3443,145.25,145.17,12.76965147]
[1724915501668,16.3443,145.25,145.16,4.28848216]
[1724915501869,16.3443,145.25,145.15,17.05931144]
[1724915501870,62.76965147,145.24,145.15,17.05931144]
[1724915502069,69.65485147,145.24,145.15,17.05931144]
[1724915502307,69.65485147,145.24,145.15,5.82371334]
[1724915502464,69.65485147,145.24,145.15,2.91212526]
[1724915502669,12.76965147,145.22,145.15,2.91212526]
[1724915505094,45.25098,145.23,145.15,15.68177673]
[1724915506484,45.0,145.23,145.15,15.68177673]
[1724915506684,12.76965147,145.22,145.15,2.91212526]
[1724915510515,12.76965147,145.22,145.14,2.91218841]
[1724915511286,12.76965147,145.22,145.13,35.53305147]
[1724915511582,12.76965147,145.22,145.14,1.37779938]
[1724915514790,12.76965147,145.22,145.13,35.53305147]
[1724915516404,62.76965147,145.2,145.13,22.7634]
[1724915516904,45.0,145.19,145.13,22.7634]
[1724915524526,12.76965147,145.15,145.08,21.3878]
[1724915524722,12.76965147,145.15,145.04,253.2]
[1724915524723,12.76965147,145.13,145.05,24.36828798]
[1724915525018,12.76965147,145.09,145.05,2.98048798]
[1724915525227,6.2983,145.13,145.04,14.14844757]
[1724915525228,50.0,145.13,145.04,14.14844757]
[1724915525392,62.76965147,145.13,145.04,12.76965147]
[1724915525594,62.76965147,145.13,145.04,15.75101633]
[1724915525795,50.0,145.13,145.04,15.75101633]
[1724915526035,74.24534147,145.14,145.04,15.75101633]
[1724915526195,20.12549,145.13,145.04,15.75101633]
[1724915529135,20.12549,145.13,145.04,15.74907786]
[1724915530619,70.12549,145.13,145.04,15.74907786]
[1724915530921,45.0,145.12,145.04,12.76965147]
[1724915532829,45.0,145.12,145.03,22.26011142]
[1724915533038,45.0,145.12,145.04,12.76965147]
[1724915541435,20.0,145.13,145.06,12.76965147]
[1724915541725,56.2983,145.17,145.08,12.76965147]
[1724915543219,20.0,145.16,145.08,12.76965147]
[1724915543827,45.0,145.15,145.08,12.76965147]
[1724915547932,45.0,145.15,145.06,6.5821]
[1724915548140,45.0,145.15,145.08,12.76965147]
[1724915549437,50.12549,145.14,145.06,6.5821]
[1724915549636,50.12549,145.14,145.06,19.35175147]
[1724915550540,57.76965147,145.15,145.06,19.35175147]
[1724915552616,57.76965147,145.15,145.06,6.5821]
[1724915552816,0.12549,145.14,145.07,12.76965147]
[1724915555847,45.0,145.15,145.07,12.76965147]
[1724915556040,20.0,145.16,145.09,12.76965147]
[1724915561629,20.0,145.16,145.11,12.76965147]
[1724915561937,15.962,145.18,145.11,12.76965147]
[1724915563853,28.73165147,145.18,145.09,12.76965147]
[1724915566448,28.73165147,145.18,145.07,16.2799]
[1724915566449,45.12549,145.17,145.07,16.2799]
[1724915566630,52.01399,145.17,145.08,12.76965147]
[1724915566827,69.78414147,145.16,145.07,16.2799]
[1724915567034,45.12549,145.15,145.06,19.35175147]
[1724915568350,45.12549,145.15,145.08,12.76965147]
[1724915570542,45.12549,145.15,145.06,19.35175147]
[1724915572752,45.12549,145.15,145.06,12.76965147]
[1724915574755,45.12549,145.15,145.07,0.61222288]
[1724915574938,45.12549,145.15,145.07,1.37845462]
[1724915575334,45.12549,145.15,145.08,12.76965147]
[1724915575542,15.4919,145.14,145.07,1.37845462]
[1724915575844,15.4919,145.14,145.07,14.14810609]
[1724915576047,15.4919,145.14,145.07,12.76965147]
[1724915584668,15.4919,145.14,145.08,2.91544205]
[1724915584890,15.4919,145.14,145.09,2.91544205]
[1724915585170,15.4919,145.14,145.07,12.76965147]
[1724915585368,15.4919,145.14,145.08,2.91551901]
[1724915585572,15.4919,145.14,145.07,12.76965147]
[1724915585777,15.4919,145.14,145.09,2.91551563]
[1724915586374,15.4919,145.14,145.07,12.76965147]
[1724915586871,15.4919,145.14,145.04,12.81884537]
[1724915587067,15.4919,145.14,145.05,0.12549]
[1724915587373,15.4919,145.14,145.06,12.76965147]
[1724915593082,15.4919,145.14,145.06,11.32064459]
[1724915595479,15.4919,145.14,145.08,12.76965147]
[1724915600479,16.47,145.18,145.12,12.76965147]
[1724915601473,16.47,145.18,145.11,12.76965147]
[1724915602087,66.47,145.18,145.07,4.35884365]
[1724915602281,66.47,145.18,145.04,58.24570608]
[1724915602282,45.12549,145.17,145.1,12.76965147]
[1724915602587,16.47,145.18,145.12,12.76965147]
[1724915603468,50.0,145.15,145.04,10.00203747]
[1724915603659,32.76965147,145.14,145.05,14.14824635]
[1724915603880,0.12549,145.13,145.05,14.14824635]
[1724915604089,45.12549,145.13,145.07,12.76965147]
[1724915605170,50.0,145.11,145.04,7.1671002]
[1724915605470,51.8919,145.1,145.04,7.1671002]
[1724915606381,45.0,145.1,145.04,7.1671002]
[1724915607370,45.0,145.1,145.05,5.15395255]
[1724915607573,50.25098,145.09,145.06,5.15395255]
[1724915607780,45.0,145.08,145.01,5.15395255]
[1724915607988,45.0,145.08,145.02,5.15395255]
[1724915608186,45.0,145.08,145.01,5.15395255]
[1724915608376,45.0,145.08,145.02,5.15395255]
[1724915608579,45.0,145.08,145.01,5.15395255]
[1724915608779,45.0,145.08,145.02,5.15395255]
[1724915609098,45.0,145.08,145.01,5.15395255]
[1724915610078,50.12549,145.09,145.01,5.15395255]
[1724915610792,50.12549,145.09,145.0,12.76965147]
[1724915611277,0.12549,145.09,145.01,6.46778425]
[1724915611479,15.5869,145.09,145.01,5.15803125]
[1724915611687,15.5869,145.09,145.01,12.76965147]
[1724915612279,95.12549,145.08,144.99,5.15803125]
[1724915612492,95.12549,145.08,144.99,12.76965147]
[1724915612692,45.12549,145.08,144.99,17.92768272]
[1724915612885,45.12549,145.08,145.0,0.91708105]
[1724915614602,45.12549,145.08,145.0,1.37907216]
[1724915614978,15.71239,145.09,145.0,1.37907216]
[1724915615799,69.18775147,145.07,144.95,29.40357311]
[1724915615995,15.5358,145.05,144.97,12.76965147]
[1724915616980,28.30545147,145.05,144.97,12.76965147]
[1724915617584,12.76965147,145.03,144.93,12.76965147]
[1724915617785,12.76965147,145.01,144.88,22.0993]
[1724915617985,12.76965147,144.99,144.9,7.17426163]
[1724915618209,12.76965147,144.99,144.89,12.76965147]
[1724915618503,22.8347,145.02,144.93,12.76965147]
[1724915618712,22.8347,145.02,144.95,12.76965147]
[1724915621703,22.8347,145.02,144.96,12.76965147]
[1724915623813,16.4166,145.02,144.98,12.76965147]
[1724915627902,16.4166,145.02,144.96,12.76965147]
[1724915629717,16.4166,145.02,144.94,23.34469]
[1724915630023,16.4166,145.02,144.95,12.76965147]
[1724915634421,16.4166,145.02,144.96,1.3732403]
[1724915634925,16.4166,145.02,144.95,12.76965147]
[1724915636023,16.4166,145.02,144.94,12.89514147]
[1724915637706,16.4166,145.02,144.96,12.76965147]
[1724915640032,16.4166,145.02,144.98,12.76965147]
[1724915640439,16.4166,145.02,144.97,12.76965147]
[1724915642932,16.4166,145.02,144.95,12.76965147]
[1724915645034,6.2209,145.01,144.95,12.76965147]
[1724915646913,6.2209,145.01,144.92,12.76965147]
[1724915648921,6.2209,145.01,144.94,12.76965147]
[1724915651723,6.2209,145.01,144.93,12.76965147]
[1724915653536,6.2209,145.01,144.93,10.07964947]
[1724915657039,6.2209,145.01,144.95,12.76965147]
[1724915657420,6.2209,145.01,144.96,0.6026663]
[1724915657639,6.2209,145.01,144.96,1.37942895]
[1724915658327,6.2209,145.01,144.96,12.76965147]
[1724915658531,15.1478,145.08,145.0,12.76965147]
[1724915658717,15.1478,145.08,145.01,45.25098]
[1724915658919,15.1478,145.08,145.03,12.76965147]
[1724915659337,15.1478,145.08,145.02,1.3786566]
[1724915659522,15.1478,145.08,144.98,9.07861088]
[1724915659723,15.1478,145.08,145.01,12.76965147]
[1724915659964,6.1229,145.1,145.05,12.76965147]
[1724915660117,17.2181,145.2,145.07,12.76965147]
[1724915660118,15.9507,145.12,145.07,12.76965147]
[1724915664434,15.9507,145.12,145.08,1.37833242]
[1724915671533,15.9507,145.12,145.07,12.76965147]
[1724915673054,15.9507,145.12,145.03,6.2805]
[1724915673232,15.9507,145.12,145.05,12.76965147]
[1724915677231,15.9507,145.12,145.0,6.3348]
[1724915677232,51.2472,145.11,144.98,253.2]
[1724915677457,12.76965147,145.1,145.01,12.76965147]
[1724915677962,16.4278,145.09,144.97,51.07860588]
[1724915678260,16.4278,145.09,145.01,12.76965147]
[1724915683263,16.4278,145.09,145.02,1.37881701]
[1724915684357,16.4278,145.09,145.01,12.76965147]
[1724915685465,16.4278,145.09,145.03,12.76965147]
[1724915688164,16.4278,145.09,145.02,0.25098]
[1724915688366,16.4278,145.09,145.02,12.89514147]
[1724915690560,16.4278,145.09,145.02,12.76965147]
[1724915692463,16.4278,145.09,144.97,51.07860588]
[1724915692464,16.4278,145.09,144.96,21.6635]
[1724915692650,16.4278,145.09,145.0,12.76965147]
[1724915693867,16.4278,145.09,145.02,12.76965147]
[1724915694072,16.4278,145.09,145.03,1.3787855]
[1724915696473,16.4278,145.09,145.04,12.76965147]
[1724915696651,16.4278,145.09,145.05,1.37868091]
[1724915698873,16.4278,145.09,145.06,12.76965147]
[1724915699052,16.4278,145.09,145.07,1.37840565]
[1724915699370,16.4278,145.09,145.04,12.89514147]
[1724915699751,16.4278,145.09,145.04,12.76965147]
[1724915702090,16.4278,145.09,144.98,5.15758423]
[1724915702248,6.4748,145.07,144.98,10.31521247]
[1724915702448,6.4748,145.07,144.99,12.76965147]
[1724915703280,16.6644,145.06,144.99,12.76965147]
[1724915706770,16.6644,145.06,144.98,0.12549]
[1724915706771,16.6644,145.06,145.01,12.76965147]
[1724915706969,16.6644,145.06,145.02,0.60415896]
[1724915708574,16.6644,145.06,145.02,12.76965147]
[1724915709957,16.6644,145.06,144.98,8.27102248]
[1724915710280,16.6644,145.06,145.01,12.76965147]
[1724915710782,16.6644,145.06,144.99,45.25098]
[1724915710980,16.6644,145.06,145.0,12.76965147]
[1724915711858,16.6644,145.06,145.02,12.76965147]
[1724915712980,16.6644,145.06,145.03,1.16705754]
[1724915714368,16.6644,145.06,145.02,12.76965147]
[1724915714684,16.6644,145.06,145.04,12.76965147]
[1724915716683,16.6644,145.06,145.03,0.12549]
[1724915718861,16.6644,145.06,145.02,12.76965147]
[1724915720388,16.6644,145.06,145.03,0.12549]
[1724915720590,16.6644,145.06,145.03,1.32818184]
[1724915727378,16.6644,145.06,145.04,12.76965147]
[1724915727578,16.6644,145.06,145.05,1.20290546]
[1724915727894,6.3818,145.1,145.05,1.32839546]
[1724915728074,15.8755,145.11,145.06,13.66271576]
[1724915728267,15.8755,145.11,145.08,12.76965147]
[1724915728468,15.8755,145.11,145.09,0.89347909]
[1724915729181,15.8755,145.11,145.06,12.76965147]
[1724915730093,15.8755,145.11,145.06,14.14777524]
[1724915731991,15.8755,145.11,145.06,12.76965147]
[1724915733892,15.8755,145.11,145.07,1.37833847]
[1724915734075,15.8755,145.11,145.08,1.37833817]
[1724915734876,15.8755,145.11,145.08,14.14798964]
[1724915735075,15.8755,145.11,145.08,12.76965147]
[1724915735271,15.8755,145.11,145.09,1.3779588]
[1724915735582,6.5269,145.14,145.09,1.3779588]
[1724915736881,6.5269,145.14,145.1,0.12549]
[1724915737394,6.5269,145.14,145.09,0.12549]
[1724915738490,6.5269,145.14,145.08,12.76965147]
[1724915740778,4.9272,145.14,145.08,12.76965147]
[1724915744077,4.9272,145.14,145.07,0.12549]
[1724915747499,4.9272,145.14,145.06,12.76965147]
[1724915751173,4.9272,145.14,145.08,12.76965147]
[1724915751991,15.6055,145.15,145.09,1.37815149]
[1724915752190,15.6055,145.15,145.1,12.76965147]
[1724915752780,15.6055,145.15,145.09,0.12549]
[1724915752781,15.6055,145.15,145.12,12.76965147]
[1724915752989,6.6152,145.18,145.12,12.76965147]
[1724915756699,16.362,145.19,145.12,12.76965147]
[1724915756889,16.362,145.19,145.13,0.12549]
[1724915757604,16.362,145.19,145.14,12.76965147]
[1724915757899,16.2684,145.23,145.14,12.76965147]
[1724915758285,35.92385147,145.23,145.14,12.76965147]
[1724915759692,35.92385147,145.23,145.13,0.12549]
[1724915760916,12.76965147,145.21,145.11,6.2829]
[1724915761204,19.65625147,145.21,145.12,0.12549]
[1724915761506,20.0,145.2,145.12,0.12549]
[1724915764203,26.8871,145.2,145.11,19.05255147]
[1724915764582,12.76965147,145.19,145.11,19.05255147]
[1724915767806,12.76965147,145.19,145.08,16.3143]
[1724915767998,12.76965147,145.19,145.08,29.08395147]
[1724915767999,36.3936,145.18,145.08,29.08395147]
[1724915768507,12.76965147,145.17,145.08,29.08395147]
[1724915769615,12.76965147,145.17,145.08,16.3143]
[1724915769792,12.76965147,145.17,145.08,29.08395147]
[1724915770193,43.2816,145.18,145.08,29.08395147]
[1724915771807,12.76965147,145.17,145.08,29.08395147]
[1724915777015,12.76965147,145.15,145.07,6.66929]
[1724915778593,19.65815147,145.17,145.07,6.66929]
[1724915778791,20.0,145.16,145.08,12.76965147]
[1724915781315,20.0,145.16,145.09,1.37813799]
[1724915781691,20.0,145.16,145.08,12.76965147]
[1724915791419,26.889,145.16,145.07,6.5438]
[1724915791727,57.76965147,145.15,145.07,6.5438]
[1724915791926,12.76965147,145.15,145.07,6.5438]
[1724915792510,12.76965147,145.15,145.07,19.31345147]
[1724915793219,20.0,145.16,145.07,19.31345147]
[1724915793409,20.0,145.16,145.08,0.12549]
[1724915796103,32.76965147,145.17,145.08,12.89514147]
[1724915796301,32.76965147,145.17,145.09,1.37814426]
[1724915796820,32.76965147,145.17,145.08,12.89514147]
[1724915798025,32.76965147,145.17,145.08,15.81718411]
[1724915798327,32.76965147,145.17,145.08,0.12549]
[1724915798519,32.76965147,145.17,145.08,0.25098]
[1724915799210,32.76965147,145.17,145.08,3.17302264]
[1724915800618,32.76965147,145.17,145.08,0.25098]
[1724915800923,32.76965147,145.17,145.08,3.17302264]
[1724915801430,32.76965147,145.17,145.08,0.25098]
[1724915803638,32.76965147,145.17,145.08,13.02063147]
[1724915804537,20.0,145.17,145.08,13.02063147]
[1724915804731,32.76965147,145.17,145.08,13.02063147]
[1724915805631,32.76965147,145.17,145.09,1.37814833]
[1724915807116,32.76965147,145.17,145.08,13.02063147]
[1724915807317,39.65845147,145.17,145.07,6.5438]
[1724915807545,12.76965147,145.15,145.07,11.70819854]
[1724915809337,19.65905147,145.15,145.07,6.5438]
[1724915809542,69.65905147,145.15,145.07,6.5438]
[1724915809714,45.0,145.14,145.07,6.5438]
[1724915811635,19.65905147,145.15,145.07,6.5438]
[1724915811830,12.76965147,145.15,145.07,6.5438]
[1724915812737,12.76965147,145.15,145.08,1.37840312]
[1724915815020,12.76965147,145.15,145.07,11.70856426]
[1724915816256,12.76965147,145.15,145.07,6.5438]
[1724915816927,12.76965147,145.15,145.08,1.37831196]
[1724915818038,32.76965147,145.17,145.08,14.14796343]
[1724915819241,32.76965147,145.17,145.09,16.1223]
[1724915819443,32.76965147,145.17,145.1,1.37812197]
[1724915820035,32.76965147,145.17,145.09,21.2865104]
[1724915820347,32.76965147,145.17,145.09,26.45071967]
[1724915820845,32.76965147,145.17,145.09,21.2865104]
[1724915821422,20.0,145.17,145.09,21.2865104]
[1724915821623,72.6328,145.22,145.11,6.2175]
[1724915821838,35.40245147,145.22,145.13,16.0757]
[1724915822047,12.76965147,145.24,145.14,12.76965147]
[1724915822253,12.76965147,145.24,145.15,6.1582]
[1724915827549,12.76965147,145.22,145.15,6.1582]
[1724915829442,6.8848,145.25,145.15,6.1582]
[1724915829656,77.76965147,145.24,145.15,6.1582]
[1724915830952,84.65475147,145.24,145.15,6.1582]
[1724915836661,12.76965147,145.22,145.15,6.1582]
[1724915836849,12.76965147,145.2,145.15,6.1582]
[1724915837862,19.65685147,145.2,145.13,16.0757]
[1724915838041,45.0,145.19,145.13,16.0757]
[1724915838961,19.65765147,145.18,145.13,16.0757]
[1724915839262,12.76965147,145.18,145.13,16.0757]
[1724915840170,57.76965147,145.2,145.13,16.0757]
[1724915840470,20.0,145.19,145.13,16.0757]
[1724915848978,12.76965147,145.2,145.13,16.0757]
[1724915855112,19.65665147,145.2,145.13,16.0757]
[1724915856280,12.76965147,145.18,145.13,16.0757]
[1724915857469,12.76965147,145.2,145.13,16.0757]
[1724915857666,20.0,145.19,145.13,16.0757]
[1724915859584,12.76965147,145.2,145.13,16.0757]
[1724915860081,12.76965147,145.2,145.14,1.37671388]
[1724915861285,12.76965147,145.2,145.13,16.0757]
[1724915862378,12.76965147,145.2,145.13,17.45356907]
[1724915863481,12.76965147,145.2,145.13,16.0757]
[1724915866589,19.65695147,145.2,145.13,16.0757]
[1724915867371,45.0,145.19,145.13,16.0757]
[1724915868278,12.76965147,145.18,145.13,16.0757]
[1724915868581,19.65775147,145.18,145.13,16.0757]
[1724915872390,19.65775147,145.18,145.11,6.5017]
[1724915873593,6.8881,145.18,145.11,6.5017]
[1724915873887,64.65725147,145.19,145.11,6.5017]
[1724915875283,64.65725147,145.19,145.12,2.92135363]
[1724915875992,64.65725147,145.19,145.11,6.5017]
[1724915879279,64.65725147,145.19,145.12,2.92143894]
[1724915879781,64.65725147,145.19,145.11,6.5017]
[1724915880199,57.76965147,145.19,145.12,0.73454478]
[1724915880488,19.65625147,145.21,145.12,1.3781399]
[1724915880790,20.0,145.2,145.13,16.1368]
[1724915880997,12.76965147,145.21,145.14,1.37783585]
[1724915882283,12.76965147,145.21,145.15,6.4161]
[1724915883895,12.76965147,145.19,145.15,6.4161]
[1724915886798,7.01169,145.22,145.15,6.4161]
[1724915887106,20.0,145.21,145.15,6.4161]
[1724915890002,12.76965147,145.22,145.15,6.4161]
[1724915893196,19.65585147,145.22,145.15,6.4161]
[1724915895211,51.8866,145.21,145.15,6.4161]
[1724915896299,45.0,145.21,145.15,6.4161]
[1724915902795,12.76965147,145.22,145.15,6.4161]
[1724915903112,19.65535147,145.23,145.15,6.4161]
[1724915903303,20.0,145.22,145.15,6.4161]
[1724915903702,26.8861,145.22,145.15,6.4161]
[1724915903911,12.76965147,145.2,145.15,6.4161]
[1724915904414,39.65585147,145.22,145.15,6.4161]
[1724915905603,32.76965147,145.22,145.15,6.4161]
[1724915906685,12.76965147,145.22,145.15,7.79371633]
[1724915907508,12.76965147,145.22,145.15,6.4161]
[1724915908209,12.76965147,145.22,145.15,7.79378219]
[1724915908714,12.76965147,145.22,145.15,6.4161]
[1724915909404,12.76965147,145.22,145.15,7.79377288]
[1724915911910,12.76965147,145.22,145.15,6.4161]
[1724915919004,19.65585147,145.22,145.15,6.4161]
[1724915925230,12.76965147,145.2,145.1,12.76965147]
[1724915925431,12.76965147,145.2,145.11,0.25098]
[1724915926620,12.76965147,145.2,145.12,12.76965147]
[1724915928531,12.76965147,145.2,145.13,0.70577855]
[1724915929227,12.76965147,145.2,145.13,1.37785654]
[1724915940340,12.76965147,145.2,145.12,12.76965147]
[1724915941444,0.12549,145.23,145.14,12.76965147]
[1724915941643,65.12549,145.23,145.14,12.76965147]
[1724915941819,20.12549,145.23,145.15,0.500388]
[1724915942141,20.12549,145.23,145.14,12.76965147]
[1724915942312,20.0,145.23,145.14,12.76965147]
[1724915944224,20.0,145.23,145.15,0.12549]
[1724915944423,56.8838,145.27,145.16,12.76965147]
[1724915944623,32.76965147,145.26,145.16,12.76965147]
[1724915944847,6.8843,145.26,145.16,12.76965147]
[1724915945029,19.65395147,145.26,145.16,12.76965147]
[1724915945539,12.76965147,145.26,145.16,12.76965147]
[1724915945921,19.65385147,145.26,145.16,12.76965147]
[1724915946547,12.76965147,145.24,145.16,12.76965147]
[1724915948139,12.76965147,145.24,145.15,0.12549]
[1724915948334,12.76965147,145.24,145.14,12.76965147]
[1724915950715,19.65485147,145.24,145.14,12.76965147]
[1724915951127,19.65485147,145.24,145.13,0.12549]
[1724915951128,12.76965147,145.22,145.09,7.21142134]
[1724915951340,12.76965147,145.22,145.12,12.76965147]
[1724915951649,12.76965147,145.22,145.13,6.1243]
[1724915952216,12.76965147,145.22,145.14,15.6984]
[1724915952418,19.65575147,145.22,145.14,15.6984]
[1724915952675,51.8866,145.21,145.14,15.6984]
[1724915952818,45.0,145.21,145.14,15.6984]
[1724915958346,45.0,145.21,145.15,6.254]
[1724915958528,19.65585147,145.22,145.15,6.254]
[1724915959245,7.01109,145.23,145.15,6.254]
[1724915959445,77.76965147,145.22,145.15,6.254]
[1724915962252,32.76965147,145.22,145.15,6.254]
[1724915972670,45.0,145.21,145.15,6.254]
[1724915974171,51.8867,145.21,145.15,6.254]
[1724915977982,45.0,145.21,145.15,6.254]
[1724915978676,12.76965147,145.2,145.15,6.254]
[1724915990293,51.8868,145.21,145.15,6.254]
[1724915990677,64.65645147,145.21,145.15,6.254]
[1724916000608,20.0,145.22,145.15,7.63188647]
[1724916000785,26.8857,145.23,145.15,7.63188647]
[1724916000982,26.8857,145.23,145.15,6.254]
[1724916001493,26.8857,145.23,145.15,7.20780477]
[1724916002302,26.8857,145.23,145.15,7.63169403]
[1724916002606,26.8857,145.23,145.15,6.254]
[1724916002993,12.76965147,145.22,145.15,6.254]
[1724916003403,20.0,145.21,145.15,6.254]
[1724916008410,20.0,145.21,145.15,7.63169703]
[1724916009703,26.887,145.21,145.15,6.254]
[1724916010494,20.0,145.21,145.15,6.254]
[1724916014207,17.0,145.21,145.15,6.254]
[1724916019918,12.76965147,145.2,145.15,6.254]
[1724916020111,12.76965147,145.18,145.15,6.254]
[1724916021117,24.01209,145.21,145.15,6.254]
[1724916021332,12.76965147,145.2,145.15,6.254]
[1724916021620,20.0,145.19,145.15,6.254]
[1724916021819,12.76965147,145.2,145.15,6.254]
[1724916023426,23.8866,145.21,145.15,6.254]
[1724916023602,36.65625147,145.21,145.15,6.254]
[1724916024321,29.76965147,145.21,145.15,6.254]
[1724916024519,36.65635147,145.21,145.15,6.254]
[1724916025022,12.76965147,145.19,145.15,6.254]
[1724916025920,19.65725147,145.19,145.15,6.254]
[1724916026127,19.65815147,145.17,145.11,6.5355]
[1724916026420,12.76965147,145.17,145.11,6.5355]
[1724916027019,12.76965147,145.17,145.12,2.92163439]
[1724916027801,12.76965147,145.17,145.11,6.5355]
[1724916028231,51.8881,145.18,145.11,6.5355]
[1724916028431,20.0,145.17,145.11,6.5355]
[1724916029508,32.76965147,145.17,145.11,6.5355]
[1724916030126,20.0,145.17,145.11,6.5355]
[1724916030423,20.0,145.17,145.11,7.23329231]
[1724916030631,20.0,145.17,145.11,6.5355]
[1724916031919,20.0,145.17,145.11,7.48180283]
[1724916032433,20.0,145.17,145.11,6.5355]
[1724916033624,32.76965147,145.19,145.11,6.5355]
[1724916033927,20.0,145.19,145.11,6.5355]
[1724916034144,32.76965147,145.19,145.11,6.5355]
[1724916035339,39.65725147,145.19,145.11,6.5355]
[1724916037236,32.76965147,145.19,145.11,7.91353673]
[1724916038444,39.65715147,145.19,145.11,7.91353673]
[1724916039341,41.59060269,145.33,145.2,15.0134]
[1724916039342,50.0,145.3,145.2,15.0134]
[1724916039533,81.82977393,145.32,145.21,1.37718936]
[1724916039740,85.91745147,145.32,145.23,12.76965147]
[1724916039928,6.8809,145.33,145.23,12.76965147]
[1724916040247,56.8804,145.34,145.25,19.02565147]